bitfinex-derivatives/quotes_BNBF0:USTF0_20250413
["timestamp","ask_amount","ask_price","bid_price","bid_amount"]
[1744559113943,0.34214352,584.55,583.9,1.296]
[1744559115945,0.34214352,584.55,583.9,1.943]
[1744559122548,0.34214352,584.55,583.9,2.72]
[1744559134961,0.29786615,584.86,583.9,2.72]
[1744559135155,0.29507303,584.85,583.9,2.72]
[1744559136962,0.29507303,584.85,583.9,3.494]
[1744559139958,0.29786615,584.86,583.9,3.494]
[1744559140162,0.29503916,584.85,583.9,3.494]
[1744559141563,0.29786615,584.86,583.9,3.494]
[1744559141762,0.29504019,584.85,583.9,3.494]
[1744559142859,0.29790185,584.84,583.9,3.494]
[1744559143064,0.29504019,584.83,583.9,3.494]
[1744559143258,0.29506863,584.82,583.9,3.494]
[1744559143463,0.29506863,584.83,583.9,3.494]
[1744559143765,0.29506863,584.82,583.9,3.494]
[1744559143961,0.29506863,584.83,583.9,3.494]
[1744559145873,0.29506863,584.82,583.9,3.494]
[1744559146074,0.2979044,584.82,583.9,3.494]
[1744559146270,0.29506863,584.81,583.9,3.494]
[1744559148776,0.29506863,585.1,583.9,3.494]
[1744559148977,0.29789165,584.8,583.9,3.494]
[1744559149177,0.29506863,584.79,583.9,3.494]
[1744559149481,2.20523786,585.4,583.9,3.494]
[1744559149482,0.29506863,584.78,583.9,3.494]
[1744559149670,0.29504683,584.77,583.9,3.494]
[1744559149875,0.29504683,585.15,583.9,3.494]
[1744559150078,0.29788527,584.77,583.9,3.494]
[1744559150277,0.29504683,584.76,583.9,3.494]
[1744559150470,0.29504683,585.15,583.9,3.494]
[1744559150776,0.29504683,585.14,583.9,3.494]
[1744559150973,0.29504683,585.15,583.9,3.494]
[1744559151177,0.29788527,585.14,583.9,3.494]
[1744559151376,0.29500962,585.13,583.9,3.494]
[1744559151571,0.29500962,585.12,583.9,3.494]
[1744559151878,0.29500962,585.11,583.9,3.494]
[1744559152178,0.29788527,585.12,583.9,3.494]
[1744559152371,0.29500858,585.11,583.9,3.494]
[1744559154882,0.29500858,585.13,583.9,3.494]
[1744559155078,0.29788782,585.1,583.9,3.494]
[1744559155278,0.29500858,585.09,583.9,3.494]
[1744559156081,0.29788782,585.1,583.9,3.494]
[1744559156279,0.29505263,585.09,583.9,3.494]
[1744559157781,0.29509607,585.08,583.9,3.494]
[1744559157981,0.29783938,585.08,583.9,3.494]
[1744559158186,0.29509607,585.07,583.9,3.494]
[1744559159285,0.29783938,585.08,583.9,3.494]
[1744559159487,0.29510265,585.07,583.9,3.494]
[1744559160788,1.2961398,585.67,583.9,3.494]
[1744559161087,0.29779988,585.06,583.9,3.494]
[1744559161285,0.29507699,585.05,583.9,3.494]
[1744559161587,0.29507699,585.04,583.9,3.494]
[1744559161887,0.29507699,585.03,583.9,3.494]
[1744559162287,0.29507699,585.02,583.9,3.494]
[1744559162484,0.29782026,585.02,583.9,3.494]
[1744559162689,0.29507699,585.01,583.9,3.494]
[1744559163884,0.29507699,585.43,583.9,3.494]
[1744559164082,1.2961398,585.44,583.9,3.494]
[1744559164083,0.29784958,585.0,583.9,3.494]
[1744559164385,0.29507699,584.99,583.9,3.494]
[1744559164583,0.29507699,584.98,583.9,3.494]
[1744559164887,0.29507699,584.97,583.9,3.494]
[1744559165187,0.29789165,585.06,583.9,3.494]
[1744559165384,0.29504512,585.05,583.9,3.494]
[1744559165684,0.29504512,585.04,583.9,3.494]
[1744559165887,0.29504512,585.03,583.9,3.494]
[1744559166086,0.29504512,585.02,583.9,3.494]
[1744559166288,0.29504512,585.01,583.9,3.494]
[1744559166482,0.29504512,585.0,583.9,3.494]
[1744559166687,0.29504512,584.99,583.9,3.494]
[1744559166988,0.29789165,584.99,583.9,3.494]
[1744559167186,0.29504512,584.98,583.9,3.494]
[1744559167388,0.29504512,584.97,583.9,3.494]
[1744559167588,0.29504512,584.96,583.9,3.494]
[1744559167789,0.29504512,584.95,583.9,3.494]
[1744559167989,0.29504512,584.94,583.9,3.494]
[1744559168191,0.29504512,584.93,583.9,3.494]
[1744559168386,0.29504512,584.92,583.9,3.494]
[1744559168590,0.29504512,584.91,583.9,3.494]
[1744559168792,1.2961398,584.88,583.9,3.494]
[1744559168992,0.29504512,584.87,583.9,3.494]
[1744559170092,0.29792097,584.86,583.9,3.494]
[1744559170292,0.29504512,584.85,583.9,3.494]
[1744559170591,0.34197972,584.83,583.9,3.494]
[1744559170792,0.29504512,584.82,583.9,3.494]
[1744559170992,0.34199726,584.8,583.9,3.494]
[1744559171194,0.29504512,584.79,583.9,3.494]
[1744559171390,0.3420148,584.77,583.9,3.494]
[1744559171589,0.29504512,584.76,583.9,3.494]
[1744559171788,0.34203235,584.74,583.9,3.494]
[1744559171988,0.29504512,584.73,583.9,3.494]
[1744559173090,0.29793883,584.72,583.9,3.494]
[1744559173295,0.63718117,584.71,583.9,3.494]
[1744559173489,0.29513127,584.7,583.9,3.494]
[1744559173694,0.3420616,584.69,583.9,3.494]
[1744559173894,0.29513127,584.68,583.9,3.494]
[1744559174196,0.3420733,584.67,583.9,3.494]
[1744559174394,0.29513127,584.66,583.9,3.494]
[1744559174596,0.342085,584.65,583.9,3.494]
[1744559174794,0.29513127,584.64,583.9,3.494]
[1744559174998,0.34209671,584.63,583.9,3.494]
[1744559175197,0.29513127,584.62,583.9,3.494]
[1744559175898,0.34210841,584.61,583.9,3.494]
[1744559176098,0.29513127,584.6,583.9,3.494]
[1744559176299,0.34212011,584.59,583.9,3.494]
[1744559176599,0.29513419,584.58,583.9,3.494]
[1744559176792,0.34213182,584.57,583.9,3.494]
[1744559176994,0.29513419,584.56,583.9,3.494]
[1744559177198,0.34214352,584.55,583.9,3.494]
[1744559177395,0.29513419,584.54,583.9,3.494]
[1744559177599,0.34215523,584.53,583.9,3.494]
[1744559177800,0.29513419,584.52,583.9,3.494]
[1744559177999,0.34216694,584.51,583.9,3.494]
[1744559181900,0.29519828,584.5,583.9,3.494]
[1744559182097,0.34217865,584.49,583.9,3.494]
[1744559182400,0.29519828,584.48,583.9,3.494]
[1744559182594,0.34219036,584.47,583.9,3.494]
[1744559182800,0.29519828,584.46,583.9,3.494]
[1744559183094,0.34220207,584.45,583.9,3.494]
[1744559183298,0.29519828,584.44,583.9,3.494]
[1744559185901,0.34220207,584.45,583.9,3.494]
[1744559186200,0.29514238,584.44,583.9,3.494]
[1744559187002,0.34221378,584.43,583.9,3.494]
[1744559187202,0.29514238,584.42,583.9,3.494]
[1744559187400,0.34222549,584.41,583.9,3.494]
[1744559188503,0.34222549,584.41,583.36,0.29802048]
[1744559188802,0.34222549,584.41,583.37,0.3147484]
[1744559189202,0.34222549,584.41,583.36,0.29802048]
[1744559189497,0.34222549,584.41,583.37,0.31474561]
[1744559189699,0.2951504,584.4,583.37,0.31474561]
[1744559189904,0.3422372,584.39,583.37,0.31474561]
[1744559190104,0.2951504,584.38,583.37,0.31474561]
[1744559190298,0.63739346,584.38,583.37,0.31474561]
[1744559190502,0.2951504,584.37,583.37,0.31474561]
[1744559190905,0.34224306,584.38,583.38,0.98974637]
[1744559191206,0.29519115,584.37,583.39,0.31474637]
[1744559191901,0.34224306,584.38,583.39,0.31474637]
[1744559192106,0.34224306,584.38,583.4,1.263]
[1744559192307,0.34224306,584.38,583.41,0.31474637]
[1744559193907,0.34224306,584.38,583.4,1.263]
[1744559194100,0.34224306,584.38,583.41,0.31474735]
[1744559201911,0.34224306,584.38,583.4,1.263]
[1744559202113,0.34224306,584.38,583.41,0.314749]
[1744559203615,0.29527348,584.37,583.41,0.314749]
[1744559203814,0.34225477,584.36,583.41,0.314749]
[1744559204015,0.29527348,584.35,583.41,0.314749]
[1744559206519,0.34225477,584.36,583.41,0.314749]
[1744559207318,0.34225477,584.36,583.4,0.778]
[1744559209822,0.34225477,584.36,583.4,1.277]
[1744559212221,0.34225477,584.36,583.41,0.31475155]
[1744559212419,0.34225477,584.36,583.4,1.277]
[1744559212721,0.34225477,584.36,583.41,0.31474942]
[1744559214822,0.34225477,584.36,583.4,0.499]
[1744559215018,0.34225477,584.36,583.41,0.31475165]
[1744559215922,0.34225477,584.36,583.41,0.96575165]
[1744559216326,0.34225477,584.36,583.42,0.31475165]
[1744559221430,0.29539913,584.35,583.42,0.31475165]
[1744559221631,0.34225477,584.36,583.42,0.31475165]
[1744559222029,0.34225477,584.36,583.41,0.651]
[1744559224030,0.34225477,584.36,583.41,1.282]
[1744559225634,0.29543272,584.35,583.41,1.282]
[1744559225827,0.34226648,584.34,583.41,2.041]
[1744559226031,0.29543272,584.33,583.41,2.041]
[1744559226228,0.3422782,584.32,583.41,2.041]
[1744559226532,0.29543272,584.31,583.41,2.041]
[1744559226830,0.34228991,584.3,583.41,2.041]
[1744559227033,0.29543272,584.29,583.41,2.041]
[1744559227229,0.34230163,584.28,583.41,2.041]
[1744559227429,0.29543272,584.27,583.41,2.041]
[1744559227632,0.34231335,584.26,583.41,2.041]
[1744559227935,0.29543272,584.25,583.42,0.31482444]
[1744559228135,0.34232507,584.24,583.42,0.31482444]
[1744559228334,0.29543272,584.23,583.42,0.31482444]
[1744559228532,0.34232507,584.24,583.41,1.39]
[1744559228735,0.29542513,584.23,583.42,0.31482447]
[1744559228934,0.34233679,584.22,583.42,0.31482447]
[1744559229135,0.29542513,584.21,583.42,0.31482447]
[1744559229330,0.34234851,584.2,583.42,0.31482447]
[1744559230137,0.34234851,584.2,583.41,1.39]
[1744559230436,0.34234851,584.2,583.42,0.3148242]
[1744559230831,0.34234851,584.2,583.42,0.8728242]
[1744559231032,0.34234851,584.2,583.43,0.3148242]
[1744559231633,0.34234851,584.2,583.42,0.558]
[1744559232532,0.34234851,584.2,583.42,1.272]
[1744559241745,0.34234851,584.2,583.42,1.946]
[1744559248945,0.2954053,584.19,583.42,1.946]
[1744559249147,0.34236023,584.18,583.42,1.946]
[1744559249349,0.2954053,584.17,583.42,1.946]
[1744559250052,0.34236023,584.18,583.42,1.946]
[1744559253656,0.34236023,584.18,583.42,2.79]
[1744559256457,0.34236023,584.18,583.43,0.31482056]
[1744559259558,0.34236023,584.18,583.43,1.12482056]
[1744559259754,0.34236023,584.18,583.44,0.31482056]
[1744559260157,0.34236023,584.18,583.45,0.31482177]
[1744559260458,0.34236023,584.18,583.43,0.81]
[1744559260759,0.34236023,584.18,583.44,0.31482009]
[1744559261457,0.34236023,584.18,583.43,0.81]
[1744559261660,0.34236023,584.18,583.45,0.694]
[1744559264258,0.34236023,584.18,583.46,0.31481615]
[1744559264762,0.34236023,584.18,583.45,0.694]
[1744559266063,0.34236023,584.18,583.46,0.314805]
[1744559267665,0.34236023,584.18,583.45,0.694]
[1744559268557,0.34236023,584.18,583.46,0.31480157]
[1744559268758,0.34236023,584.18,583.45,0.694]
[1744559268958,0.34236023,584.18,583.46,0.31479924]
[1744559269462,0.34236023,584.18,583.47,0.816]
[1744559270162,0.34236023,584.18,583.48,0.31480401]
[1744559271865,0.34236023,584.18,583.47,0.816]
[1744559273566,0.34236023,584.18,583.48,0.314813]
[1744559274466,0.34236023,584.18,583.47,0.816]
[1744559274666,0.34236023,584.18,583.48,0.31481095]
[1744559276064,0.34236023,584.18,583.47,0.816]
[1744559276267,0.34236023,584.18,583.48,0.31480129]
[1744559277871,0.34236023,584.18,583.12,1.08603562]
[1744559278070,0.34236023,584.18,583.25,0.29813026]
[1744559278267,0.34236023,584.18,583.26,0.31480211]
[1744559278465,0.34236023,584.18,583.13,0.31480211]
[1744559278670,0.34236023,584.18,583.14,0.31480211]
[1744559278870,0.34236023,584.18,583.15,0.31480211]
[1744559279070,0.34236023,584.18,583.15,0.29814686]
[1744559279566,0.34236023,584.18,583.16,0.31480087]
[1744559281269,0.34236023,584.18,583.17,0.31482173]
[1744559281468,0.34236023,584.18,583.16,0.31482173]
[1744559281671,0.34236023,584.18,583.17,0.87582173]
[1744559281972,0.34236023,584.18,583.18,0.31482173]
[1744559282172,0.34236023,584.18,583.19,0.3148188]
[1744559282472,0.34236023,584.18,583.2,0.8708188]
[1744559282676,0.34236023,584.18,583.21,0.3148188]
[1744559282877,0.34236023,584.18,583.21,1.1148188]
[1744559283080,0.34236023,584.18,583.22,0.3148188]
[1744559283680,0.34236023,584.18,583.21,0.8]
[1744559283878,0.34236023,584.18,583.22,0.31481885]
[1744559286883,0.34236023,584.18,583.21,0.8]
[1744559287078,0.34236023,584.18,583.22,0.31481631]
[1744559290084,0.34236023,584.18,583.21,0.8]
[1744559290283,0.34236023,584.18,583.22,0.31480107]
[1744559291679,0.34236023,584.18,583.21,0.8]
[1744559291883,0.34236023,584.18,583.22,0.31480931]
[1744559294186,0.34236023,584.18,583.23,0.31480931]
[1744559294378,0.34236023,584.18,583.21,0.31480931]
[1744559297790,0.34236023,584.18,583.22,0.881]
[1744559297992,0.34236023,584.18,583.23,0.31480931]
[1744559299692,0.34236023,584.18,583.22,0.881]
[1744559299887,0.34236023,584.18,583.23,0.31479847]
[1744559301391,0.34236023,584.18,583.22,0.881]
[1744559301595,0.34236023,584.18,583.23,0.31479832]
[1744559302893,0.34236023,584.18,583.24,0.813]
[1744559303096,0.34236023,584.18,583.25,0.31479832]
[1744559304497,0.34236023,584.18,583.24,0.813]
[1744559304698,0.34236023,584.18,583.25,0.31479643]
[1744559308300,0.34236023,584.18,583.26,0.656]
[1744559313510,0.34236023,584.18,583.27,0.31485884]
[1744559315714,0.34236023,584.18,583.26,0.656]
[1744559315913,0.34236023,584.18,583.27,0.31486115]
[1744559318615,0.29601517,584.17,583.27,0.31486115]
[1744559318915,0.34236023,584.18,583.26,0.656]
[1744559319215,0.29601509,584.17,583.27,0.31484931]
[1744559323722,0.34236023,584.18,583.26,0.656]
[1744559324021,0.29598768,584.17,583.27,0.31486634]
[1744559326728,0.34236023,584.18,583.27,0.31486634]
[1744559327618,0.29598136,584.17,583.27,0.31486634]
[1744559328923,0.29598136,584.17,583.27,1.08286634]
[1744559329124,0.29598136,584.17,583.28,0.31486634]
[1744559331221,0.29598136,584.17,583.28,0.89086634]
[1744559331424,0.29598136,584.17,583.29,0.31486634]
[1744559332319,0.29598136,584.17,583.29,1.07086634]
[1744559332522,0.29598136,584.17,583.3,0.31486634]
[1744559333422,0.29595752,584.16,583.31,0.31485971]
[1744559333625,0.29595752,584.17,583.3,0.31485971]
[1744559333823,0.29595752,584.16,583.31,0.31485971]
[1744559334020,0.29595752,584.15,583.32,0.31485971]
[1744559334232,0.29595752,584.17,583.3,0.31485971]
[1744559334425,0.29595752,584.16,583.31,0.31485971]
[1744559334629,0.29595752,584.15,583.32,0.31485971]
[1744559334827,0.29595752,584.17,583.3,0.31485971]
[1744559335024,0.29595752,584.16,583.31,0.31485971]
[1744559335229,0.29595752,584.17,583.3,0.31485971]
[1744559335424,0.29595752,584.15,583.32,0.31485971]
[1744559335734,0.29595752,584.14,583.33,0.31485971]
[1744559336030,0.29595752,584.17,583.31,0.31485971]
[1744559336229,0.29595752,584.16,583.32,0.31485971]
[1744559336530,0.34236023,584.18,583.3,0.78]
[1744559336832,0.29598758,584.17,583.31,0.31486147]
[1744559338231,0.34236023,584.18,583.3,0.78]
[1744559338428,0.29594558,584.17,583.31,0.31484121]
[1744559339833,0.34236023,584.18,583.3,0.78]
[1744559342433,0.34236023,584.18,583.3,1.352]
[1744559343832,0.34236023,584.18,583.31,0.31483414]
[1744559344332,0.34236023,584.18,583.32,0.31483436]
[1744559344536,0.34236023,584.18,583.31,0.31483436]
[1744559345737,0.2959683,584.17,583.31,0.86483436]
[1744559345937,0.2959683,584.17,583.32,0.31483436]
[1744559346135,0.34236023,584.18,583.32,0.31483436]
[1744559346334,0.34236023,584.18,583.33,0.882]
[1744559346532,0.34236023,584.18,583.34,0.31483436]
[1744559347038,0.34236023,584.18,583.33,0.882]
[1744559351848,0.29592564,584.17,583.33,0.882]
[1744559352045,0.63829173,584.17,583.33,0.882]
[1744559352242,0.29592564,584.16,583.33,0.882]
[1744559355349,0.34236609,584.17,583.33,0.882]
[1744559355549,0.29592844,584.16,583.33,0.882]
[1744559356442,0.29592844,584.16,583.34,0.31487125]
[1744559356646,0.29592844,584.16,583.33,0.882]
[1744559358650,0.34236609,584.17,583.33,0.882]
[1744559358853,0.29589384,584.16,583.33,0.882]
[1744559359247,0.29589384,584.16,583.34,0.31487167]
[1744559361853,0.29589384,584.16,583.35,0.965]
[1744559362053,0.29589384,584.16,583.36,0.31487167]
[1744559364852,0.29589384,584.16,583.37,0.556]
[1744559365054,0.34236609,584.17,583.37,0.556]
[1744559365353,0.29596952,584.16,583.38,0.31486081]
[1744559366153,0.34236609,584.17,583.37,0.556]
[1744559366348,0.29598078,584.16,583.38,0.31485904]
[1744559366552,0.29598078,584.16,583.38,1.08685904]
[1744559366854,0.29597899,584.15,583.39,0.31485868]
[1744559367148,0.29597899,584.14,583.39,0.31485868]
[1744559367449,0.29597899,584.16,583.38,0.772]
[1744559367753,0.29597899,584.15,583.38,0.772]
[1744559367954,0.29597899,584.16,583.39,0.748]
[1744559368153,0.29597899,584.14,583.39,0.748]
[1744559368355,0.29597899,584.13,583.39,0.748]
[1744559368553,0.34236609,584.17,583.39,0.748]
[1744559368857,0.2960571,584.16,583.39,0.748]
[1744559373559,0.2960571,584.16,583.4,0.31485641]
[1744559373755,0.2960571,584.16,583.39,0.748]
[1744559373955,0.2960571,584.16,583.4,0.836]
[1744559376366,0.34236609,584.17,583.4,0.836]
[1744559376566,0.2960404,584.16,583.4,0.836]
[1744559378567,0.34236609,584.17,583.4,0.836]
[1744559380269,0.34236609,584.17,583.4,1.754]
[1744559389267,0.34236609,584.17,583.41,0.31481557]
[1744559390474,0.34236609,584.17,583.41,1.06881557]
[1744559390772,0.34236609,584.17,583.42,0.31481557]
[1744559391274,0.34236609,584.17,583.42,1.10881557]
[1744559391469,0.34236609,584.17,583.43,0.31481557]
[1744559392577,0.34236609,584.17,583.44,0.31481287]
[1744559392770,0.34236609,584.17,583.43,0.31481287]
[1744559392976,0.34236609,584.17,583.44,0.31481473]
[1744559393173,0.34236609,584.17,583.43,0.31481473]
[1744559393375,0.34236609,584.17,583.42,0.794]
[1744559393571,0.34236609,584.17,583.43,0.31482033]
[1744559394274,0.34236609,584.17,583.42,0.794]
[1744559394473,0.34236609,584.17,583.43,0.31481763]
[1744559394670,0.34236609,584.17,583.42,0.794]
[1744559397280,0.34236609,584.17,583.42,1.438]
[1744559400783,0.34236609,584.17,583.43,0.3148325]
[1744559400978,0.34236609,584.17,583.42,1.438]
[1744559401182,0.34236609,584.17,583.43,0.31483201]
[1744559402183,0.34236609,584.17,583.42,1.438]
[1744559402376,0.34236609,584.17,583.43,0.31483591]
[1744559404786,0.34236609,584.17,583.42,1.438]
[1744559409991,0.34236609,584.17,583.42,2.036]
[1744559414198,0.29578933,584.16,583.42,2.036]
[1744559414496,0.63816128,584.16,583.42,2.036]
[1744559414696,0.34237195,584.16,583.42,2.036]
[1744559418095,0.34237195,584.16,583.42,2.78]
[1744559422901,0.29597359,584.15,583.42,2.78]
[1744559429602,0.29597359,584.15,583.42,3.308]
[1744559429804,0.34237195,584.16,583.42,3.308]
[1744559429998,0.29580816,584.15,583.42,3.308]
[1744559431506,0.34237195,584.16,583.42,3.308]
[1744559432509,0.29581573,584.15,583.42,3.308]
[1744559433108,0.34237195,584.16,583.42,3.308]
[1744559433304,0.29581304,584.15,583.42,3.308]
[1744559433508,0.34237195,584.16,583.42,3.308]
[1744559433708,0.29581347,584.14,583.42,3.308]
[1744559433908,0.34237195,584.16,583.42,3.308]
[1744559434110,0.29580683,584.13,583.42,3.308]
[1744559434304,0.34237195,584.16,583.42,3.308]
[1744559434610,0.29581364,584.15,583.42,3.308]
[1744559436512,0.34237195,584.16,583.42,3.308]
[1744559436710,0.29581674,584.15,583.42,3.308]
[1744559437911,0.34237195,584.16,583.42,3.308]
[1744559438312,0.29582547,584.15,583.42,3.308]
[1744559438813,0.34237195,584.16,583.42,3.308]
[1744559439414,0.34237195,584.16,583.16,0.29816347]
[1744559439714,0.34237195,584.16,582.91,1.08603562]
[1744559439915,0.34237195,584.16,582.92,0.65795127]
[1744559440115,0.34237195,584.16,582.93,0.65794538]
[1744559440315,0.34237195,584.16,583.16,0.29816985]
[1744559440508,0.34237195,584.16,583.17,0.31485102]
[1744559440713,0.34237195,584.16,583.18,0.31485102]
[1744559440912,0.34237195,584.16,582.98,0.31485102]
[1744559441211,0.34237195,584.16,582.99,0.34305905]
[1744559441414,0.34237195,584.16,583.0,0.31485521]
[1744559441711,0.34237195,584.16,583.01,0.34304728]
[1744559442011,0.34237195,584.16,583.02,0.31485521]
[1744559442416,0.34237195,584.16,583.03,0.34303552]
[1744559442611,0.34237195,584.16,583.04,0.31485521]
[1744559442812,0.34237195,584.16,583.05,0.34302375]
[1744559443014,0.34237195,584.16,583.06,0.31482098]
[1744559443215,0.34237195,584.16,583.07,0.34301198]
[1744559443415,0.34237195,584.16,583.08,0.31482098]
[1744559443615,0.34237195,584.16,583.08,0.65782708]
[1744559443816,0.34237195,584.16,583.09,0.97582098]
[1744559444017,0.34237195,584.16,583.1,0.31482098]
[1744559444216,0.34237195,584.16,583.1,1.01482098]
[1744559444412,0.34237195,584.16,583.11,0.609]
[1744559444617,0.34237195,584.16,583.12,0.31482098]
[1744559444815,0.34237195,584.16,583.12,0.95182098]
[1744559445014,0.34237195,584.16,583.13,1.12782098]
[1744559445213,0.34237195,584.16,583.14,0.31482098]
[1744559447518,0.34237195,584.16,583.13,0.813]
[1744559447718,0.34237195,584.16,583.14,0.31481195]
[1744559449118,0.34237195,584.16,583.13,0.813]
[1744559449319,0.34237195,584.16,583.14,0.31481541]
[1744559451621,0.34237195,584.16,583.15,0.557]
[1744559451822,0.34237195,584.16,583.16,0.31481541]
[1744559455421,0.34237195,584.16,583.15,0.557]
[1744559455722,0.34237195,584.16,583.16,0.31481504]
[1744559456821,0.34237195,584.16,583.17,0.34295316]
[1744559457217,0.34237195,584.16,583.18,0.31476277]
[1744559458123,0.34237195,584.16,583.19,0.3429414]
[1744559458423,0.34237195,584.16,583.2,0.31476277]
[1744559459325,0.29809451,584.53,583.21,0.34292964]
[1744559459525,0.63809719,584.52,583.22,0.31476277]
[1744559459722,0.63810305,584.51,583.23,0.34291788]
[1744559459919,0.6381089,584.5,583.24,0.31476277]
[1744559460119,0.34217865,584.49,583.25,0.34290612]
[1744559460321,0.34217865,584.49,583.26,0.3147596]
[1744559460322,0.29599619,584.48,583.26,0.3147596]
[1744559460522,0.34219036,584.47,583.26,0.3147596]
[1744559460724,0.29599619,584.46,583.26,0.3147596]
[1744559460923,0.6381924,584.46,583.26,0.3147596]
[1744559461126,0.29599619,584.45,583.26,0.3147596]
[1744559462826,0.34219621,584.46,583.25,0.34290612]
[1744559463027,0.29598413,584.45,583.26,0.31476415]
[1744559464431,0.34219621,584.46,583.25,0.34290612]
[1744559464632,0.29596955,584.45,583.26,0.31476372]
[1744559466530,0.29596955,584.45,583.27,0.538]
[1744559466734,0.34220792,584.44,583.28,0.31476372]
[1744559467129,0.29596622,584.43,583.28,0.95276372]
[1744559467327,0.29596622,584.43,583.29,0.31476372]
[1744559467328,0.34221963,584.42,583.29,0.31476372]
[1744559467532,0.29596622,584.41,583.29,0.31476372]
[1744559467737,0.29596287,584.4,583.3,0.31476699]
[1744559467936,0.29596287,584.4,583.29,0.31476699]
[1744559468529,0.3422372,584.39,583.29,0.31476699]
[1744559468733,0.29596287,584.38,583.29,0.31476699]
[1744559468936,0.34224891,584.37,583.29,0.31476699]
[1744559469233,0.29596287,584.36,583.29,0.31476699]
[1744559469434,0.34226063,584.35,583.29,0.31476699]
[1744559469634,0.29596287,584.34,583.29,0.31476699]
[1744559469835,0.34227234,584.33,583.29,0.31476699]
[1744559470035,0.29596287,584.32,583.29,0.31476699]
[1744559470738,0.34227234,584.33,583.28,0.638]
[1744559470939,0.29593022,584.32,583.29,0.31479692]
[1744559472341,0.29595,584.31,583.3,0.31479388]
[1744559472539,0.29595,584.32,583.29,0.31479388]
[1744559475247,0.34227234,584.33,583.28,0.638]
[1744559475449,0.34227234,584.33,583.3,0.31479338]
[1744559475746,0.29595323,584.32,583.31,0.31479353]
[1744559475946,0.29595323,584.32,583.29,0.31479353]
[1744559477646,0.29595323,584.32,583.29,1.03179353]
[1744559477847,0.29595323,584.32,583.3,0.31479353]
[1744559480248,0.34227234,584.33,583.29,0.717]
[1744559480448,0.29595168,584.31,583.31,0.31479305]
[1744559480748,0.29595168,584.3,583.32,0.31479305]
[1744559480947,0.29595168,584.29,583.33,0.31479305]
[1744559481148,0.29595168,584.32,583.3,0.31479305]
[1744559481349,0.29595168,584.31,583.31,0.31479305]
[1744559481551,0.29595168,584.32,583.3,0.31479305]
[1744559481745,0.29595168,584.32,583.29,0.717]
[1744559481746,0.29595168,584.3,583.32,0.31479305]
[1744559481947,0.29595168,584.29,583.33,0.31479305]
[1744559482145,0.29595168,584.28,583.34,0.31479305]
[1744559482346,0.29595168,584.32,583.3,0.31479305]
[1744559482550,0.29595168,584.31,583.31,0.31479305]
[1744559482743,0.29595168,584.32,583.3,0.31479305]
[1744559482947,0.29595168,584.31,583.31,1.09379305]
[1744559483145,0.29595168,584.32,583.32,0.31479305]
[1744559485053,0.34227234,584.33,583.31,0.779]
[1744559485254,0.29593902,584.32,583.33,0.796]
[1744559485449,0.29593902,584.32,583.34,0.31479883]
[1744559486750,0.34228406,584.31,583.34,0.31479883]
[1744559486955,0.29593902,584.3,583.34,0.31479883]
[1744559488257,0.29593714,584.29,583.35,0.31479979]
[1744559488457,0.29593714,584.28,583.36,0.31479979]
[1744559488757,0.34228406,584.31,583.37,0.31479979]
[1744559488958,0.29593676,584.3,583.37,0.31479979]
[1744559489257,0.63822667,584.3,583.37,0.31479979]
[1744559489457,0.34228991,584.3,583.37,0.31479979]
[1744559489858,0.34228991,584.3,583.38,0.31479946]
[1744559490152,0.34228991,584.3,583.37,0.31479946]
[1744559490358,0.34228991,584.3,583.38,0.31479946]
[1744559490559,0.34228991,584.3,583.37,0.31479946]
[1744559490753,0.34228991,584.3,583.36,0.739]
[1744559493460,0.34228991,584.3,583.37,0.702]
[1744559493759,0.29598672,584.29,583.37,0.702]
[1744559494260,0.34230163,584.28,583.37,0.702]
[1744559498061,0.29598922,584.27,583.37,0.702]
[1744559498262,0.34231335,584.26,583.38,0.31484705]
[1744559498460,0.29598922,584.25,583.38,0.31484705]
[1744559498661,0.34232507,584.24,583.39,0.693]
[1744559498861,0.29598922,584.23,583.4,0.31484705]
[1744559501668,0.34232507,584.24,583.39,0.693]
[1744559504768,0.34232507,584.24,583.4,0.31476258]
[1744559505167,0.34232507,584.24,583.4,1.15376258]
[1744559505467,0.34232507,584.24,583.41,0.31476258]
[1744559508666,0.34232507,584.24,583.4,0.839]
[1744559508871,0.34232507,584.24,583.41,0.314761]